[Event "13th All African Rapid-ch Women 2024"]
[Site "Accra"]
[Date "2024.03.10"]
[Round "5.3"]
[White "PEACE SAMSON"]
[Black "Mbatha, Constance"]
[Result "1-0"]
[ECO "B07"]
[WhiteElo "1870"]
[BlackElo "1799"]
[Annotator "NA RC"]
[PlyCount "107"]
[EventDate "2024.03.07"]
[EventType "rapid"]
[EventCountry "GHA"]
[SourceTitle "playchess.com"]
[Source "ChessBase"]
[SourceQuality "1"]
[TimeControl "900+10"]

1. e4 {[%emt 0:00:03]} e5 {[%emt 0:00:02]} 2. Nf3 {[%emt 0:00:02]} d6 {[%emt 0:00:02]} 3. d4 {[%emt 0:00:02]} exd4 {[%emt 0:00:01]} 4. Nxd4 {[%emt 0:00:04]} Nf6 {[%emt 0:00:04]} 5. Bd3 {[%emt 0:00:05]} Be7 {[%emt 0:00:01]} 6. h3 {[%emt 0:00:02]} Nbd7 {[%emt 0:00:07]} 7. Nf5 {[%emt 0:00:29]} Nc5 {[%emt 0:00:11]} 8. Nxg7+ {[%emt 0:00:10]} Kd7 {[%emt 0:00:15]} 9. Qf3 {[%emt 0:01:52]} c6 {[%emt 0:00:14]} 10. Nc3 {[%emt 0:00:35]} Kc7 {[%emt 0:00:16]} 11. Nf5 {[%emt 0:00:13]} Bxf5 {[%emt 0:00:17]} 12. Qxf5 {[%emt 0:00:02]} Nxd3+ {[%emt 0:00:14]} 13. cxd3 {[%emt 0:00:02]} Nd7 {[%emt 0:00:03]} 14. Qxf7 {[%emt 0:00:11]} Ne5 {[%emt 0:00:05]} 15. Qe6 {[%emt 0:02:08]} Nxd3+ {[%emt 0:00:08]} 16. Ke2 {[%emt 0:00:03]} Nc5 {[%emt 0:00:01]} 17. Qf7 {[%emt 0:00:10]} Qd7 {[%emt 0:00:35]} 18. Be3 {[%emt 0:00:40]} Ne6 {[%emt 0:00:54]} 19. Rac1 {[%emt 0:00:06]} Rae8 {[%emt 0:01:01]} 20. Nd5+ {[%emt 0:01:24]} Kc8 {[%emt 0:00:36]} 21. Bxa7 {[%emt 0:00:06]} Rhf8 {[%emt 0:00:32]} 22. Nb6+ {[%emt 0:00:10]} Kc7 {[%emt 0:00:03]} 23. Qxf8 {[%emt 0:00:34]} Rxf8 {[%emt 0:00:40]} 24. Nxd7 {[%emt 0:00:02]} Kxd7 {[%emt 0:00:01]} 25. Be3 {[%emt 0:00:03]} Bf6 {[%emt 0:00:17]} 26. b3 {[%emt 0:00:14]} Rg8 {[%emt 0:00:42]} 27. g3 {[%emt 0:00:16]} Nc7 {[%emt 0:00:08]} 28. a4 {[%emt 0:00:10]} Re8 {[%emt 0:00:47]} 29. f3 {[%emt 0:00:06]} d5 {[%emt 0:00:23]} 30. Rhd1 {[%emt 0:00:25]} Kc8 {[%emt 0:00:07]} 31. exd5 {[%emt 0:00:22]} cxd5 {[%emt 0:00:42]} 32. Rxd5 {[%emt 0:00:09]} Kb8 {[%emt 0:00:00]} 33. Rd7 {[%emt 0:00:23]} Ne6 {[%emt 0:00:18]} 34. f4 {[%emt 0:00:53]} h5 {[%emt 0:00:17]} 35. Kf3 {[%emt 0:00:18]} Bd8 {[%emt 0:00:42]} 36. h4 {[%emt 0:00:16]} Nf8 {[%emt 0:00:52]} 37. Rd5 {[%emt 0:00:22]} Ng6 {[%emt 0:00:49]} 38. Rxh5 {[%emt 0:01:03]} Rf8 {[%emt 0:00:14]} 39. Bc5 {[%emt 0:00:38]} Be7 {[%emt 0:00:18]} 40. Bxe7 {[%emt 0:00:08]} Nxe7 {[%emt 0:00:01]} 41. Rh7 {[%emt 0:00:07]} Nf5 {[%emt 0:00:09]} 42. Rcc7 {[%emt 0:00:21]} Nd4+ {[%emt 0:00:11]} 43. Kg2 {[%emt 0:00:14]} Nc6 {[%emt 0:00:54]} 44. Rxb7+ {[%emt 0:00:08]} Ka8 {[%emt 0:00:01]} 45. Rb6 {[%emt 0:00:25]} Nd4 {[%emt 0:00:55]} 46. Rh5 {[%emt 0:00:15]} Rf7 {[%emt 0:00:26]} 47. Ra5+ {[%emt 0:00:09]} Ra7 {[%emt 0:00:02]} 48. Rxa7+ {[%emt 0:00:02]} Kxa7 {[%emt 0:00:01]} 49. Rb4 {[%emt 0:00:29]} Nc2 {[%emt 0:00:12]} 50. Re4 {[%emt 0:00:18]} Na1 {[%emt 0:00:11]} 51. b4 {[%emt 0:00:06]} Nb3 {[%emt 0:00:02]} 52. h5 {[%emt 0:00:06]} Nd2 {[%emt 0:00:02]} 53. Re7+ {[%emt 0:00:08]} Kb6 {[%emt 0:00:01]} 54. h6 {[%emt 0:00:02]} 1-0

[Event "13th All African Rapid-ch Women 2024"]
[Site "Accra"]
[Date "2024.03.10"]
[Round "5.4"]
[White "Junior, Ednasia"]
[Black "Shaba, Linda Dalitso"]
[Result "1-0"]
[ECO "C01"]
[WhiteElo "1915"]
[BlackElo "1836"]
[Annotator "ChessBase"]
[PlyCount "127"]
[EventDate "2024.03.07"]
[EventType "rapid"]
[EventCountry "GHA"]
[SourceTitle "playchess.com"]
[Source "ChessBase"]
[SourceQuality "1"]
[TimeControl "900+10"]

1. e4 {[%emt 0:15:20]} e6 {[%emt 0:00:04]} 2. d4 {[%emt 0:00:00]} d5 {[%emt 0:00:02]} 3. Nc3 {[%emt 0:00:00]} Nf6 {[%emt 0:00:03]} 4. Bg5 {[%emt 0:00:00]} Be7 {[%emt 0:00:02]} 5. exd5 {[%emt 0:00:00]} exd5 {[%emt 0:00:06]} 6. Bd3 {[%emt 0:00:00]} Bg4 {[%emt 0:00:40]} 7. Nf3 {[%emt 0:00:00]} Nc6 {[%emt 0:01:34]} 8. Bb5 {[%emt 0:00:00]} O-O {[%emt 0:01:05]} 9. Be3 {[%emt 0:00:00]} Ne4 {[%emt 0:01:50]} 10. h3 {[%emt 0:00:00]} Bh5 {[%emt 0:02:18]} 11. O-O {[%emt 0:00:00]} a6 {[%emt 0:01:38]} 12. Be2 {[%emt 0:00:00]} Re8 {[%emt 0:01:06]} 13. Nd2 {[%emt 0:00:00]} Nxc3 {[%emt 0:01:48]} 14. bxc3 {[%emt 0:00:00]} Bxe2 {[%emt 0:00:03]} 15. Qxe2 {[%emt 0:00:00]} Bg5 {[%emt 0:00:55]} 16. Qf3 {[%emt 0:00:00]} Bf6 {[%emt 0:00:16]} 17. Rfe1 {[%emt 0:00:00]} Qd7 {[%emt 0:00:10]} 18. Re2 {[%emt 0:00:00]} Re7 {[%emt 0:00:17]} 19. Rae1 {[%emt 0:00:00]} Rae8 {[%emt 0:00:03]} 20. Nb3 {[%emt 0:00:00]} b6 {[%emt 0:00:04]} 21. Bf4 {[%emt 0:00:00]} Rxe2 {[%emt 0:00:15]} 22. Rxe2 {[%emt 0:00:00]} Rxe2 {[%emt 0:00:06]} 23. Qxe2 {[%emt 0:00:00]} a5 {[%emt 0:00:58]} 24. Bxc7 {[%emt 0:00:00]} a4 {[%emt 0:00:22]} 25. Nd2 {[%emt 0:00:28]} b5 {[%emt 0:00:12]} 26. Bg3 {[%emt 0:00:15]} Ne7 {[%emt 0:00:11]} 27. Nb1 {[%emt 0:00:44]} Nf5 {[%emt 0:00:56]} 28. Bf4 {[%emt 0:00:02]} Be7 {[%emt 0:00:04]} 29. Nd2 {[%emt 0:01:01]} f6 {[%emt 0:00:12]} 30. g4 {[%emt 0:00:33]} Nd6 {[%emt 0:00:07]} 31. Bxd6 {[%emt 0:00:08]} Bxd6 {[%emt 0:00:02]} 32. Kg2 {[%emt 0:00:18]} Kf7 {[%emt 0:00:02]} 33. Nf1 {[%emt 0:00:03]} g6 {[%emt 0:00:22]} 34. Ne3 {[%emt 0:00:20]} Bf4 {[%emt 0:00:15]} 35. Qf3 {[%emt 0:00:24]} Bxe3 {[%emt 0:00:04]} 36. fxe3 {[%emt 0:00:32]} Qc6 {[%emt 0:00:09]} 37. Kg3 {[%emt 0:00:18]} Ke6 {[%emt 0:00:05]} 38. Kh4 {[%emt 0:00:32]} Qxc3 {[%emt 0:00:17]} 39. Qe2 {[%emt 0:00:24]} Kd6 {[%emt 0:01:08]} 40. g5 {[%emt 0:00:13]} f5 {[%emt 0:00:20]} 41. Kg3 {[%emt 0:00:01]} Qc4 {[%emt 0:00:11]} 42. Qd2 {[%emt 0:00:07]} b4 {[%emt 0:00:11]} 43. h4 {[%emt 0:00:06]} Kc6 {[%emt 0:00:22]} 44. Kf4 {[%emt 0:00:09]} Kb6 {[%emt 0:00:46]} 45. Kg3 {[%emt 0:00:22]} Qc7+ {[%emt 0:00:07]} 46. Kf3 {[%emt 0:00:04]} Qe7 {[%emt 0:00:05]} 47. Kf2 {[%emt 0:00:11]} Kb5 {[%emt 0:00:19]} 48. Qd3+ {[%emt 0:00:17]} Kb6 {[%emt 0:00:04]} 49. c4 {[%emt 0:00:06]} bxc3 {[%emt 0:00:10]} 50. Qxc3 {[%emt 0:00:02]} Qd7 {[%emt 0:00:45]} 51. Qb4+ {[%emt 0:00:18]} Qb5 {[%emt 0:00:08]} 52. Qd6+ {[%emt 0:00:02]} Ka5 {[%emt 0:00:03]} 53. a3 {[%emt 0:00:05]} Qb2+ {[%emt 0:00:15]} 54. Kf3 {[%emt 0:00:07]} Qb5 {[%emt 0:00:05]} 55. Qc7+ {[%emt 0:00:08]} Ka6 {[%emt 0:00:07]} 56. Kf4 {[%emt 0:00:29]} Qf1+ {[%emt 0:00:02]} 57. Ke5 {[%emt 0:00:06]} Qf2 {[%emt 0:00:19]} 58. Qc6+ {[%emt 0:00:08]} Ka7 {[%emt 0:00:05]} 59. Qxa4+ {[%emt 0:00:02]} Kb6 {[%emt 0:00:03]} 60. Qb3+ {[%emt 0:00:03]} Ka7 {[%emt 0:00:05]} 61. Kxd5 {[%emt 0:00:12]} Qf3+ {[%emt 0:00:19]} 62. Kc5 {[%emt 0:00:11]} Qe4 {[%emt 0:00:28]} 63. Qb6+ {[%emt 0:00:22]} Ka8 {[%emt 0:00:01]} 64. Qc6+ {[%emt 0:00:02]} 1-0

[Event "13th All African Rapid-ch Women 2024"]
[Site "Accra"]
[Date "2024.03.10"]
[Round "5.5"]
[White "Tsinjoviniavo, Aina Mahasambatra"]
[Black "Yavo Tchetche, Marie"]
[Result "0-1"]
[ECO "C02"]
[WhiteElo "1681"]
[BlackElo "1659"]
[Annotator "NA"]
[PlyCount "92"]
[EventDate "2024.03.07"]
[EventType "rapid"]
[EventCountry "GHA"]
[SourceTitle "playchess.com"]
[Source "ChessBase"]
[SourceQuality "1"]
[TimeControl "900+10"]

1. e4 {[%emt 0:00:02]} e6 {[%emt 0:01:02]} 2. d4 {[%emt 0:00:01]} d5 {[%emt 0:00:04]} 3. e5 {[%emt 0:00:03]} c5 {[%emt 0:00:07]} 4. c3 {[%emt 0:00:02]} Qb6 {[%emt 0:00:02]} 5. Nf3 {[%emt 0:00:01]} Nc6 {[%emt 0:00:02]} 6. Be2 {[%emt 0:00:02]} Nge7 {[%emt 0:00:30]} 7. O-O {[%emt 0:00:04]} cxd4 {[%emt 0:00:06]} 8. cxd4 {[%emt 0:00:02]} Nf5 {[%emt 0:00:05]} 9. Qa4 {[%emt 0:01:02]} Nfxd4 {[%emt 0:00:26]} 10. Nxd4 {[%emt 0:00:12]} Qxd4 {[%emt 0:00:04]} 11. Qxd4 {[%emt 0:00:09]} Nxd4 {[%emt 0:00:01]} 12. Bd3 {[%emt 0:00:03]} Bd7 {[%emt 0:01:08]} 13. Be3 {[%emt 0:00:04]} Nc6 {[%emt 0:00:04]} 14. Bf4 {[%emt 0:00:06]} Rc8 {[%emt 0:00:09]} 15. Nc3 {[%emt 0:00:02]} Be7 {[%emt 0:01:25]} 16. Rfe1 {[%emt 0:00:23]} Nb4 {[%emt 0:00:27]} 17. Rad1 {[%emt 0:00:35]} Nxd3 {[%emt 0:01:01]} 18. Rxd3 {[%emt 0:00:03]} O-O {[%emt 0:00:24]} 19. h3 {[%emt 0:00:40]} Rc4 {[%emt 0:01:16]} 20. Bd2 {[%emt 0:00:39]} Rfc8 {[%emt 0:00:21]} 21. Kh2 {[%emt 0:01:38]} f6 {[%emt 0:02:20]} 22. exf6 {[%emt 0:00:31]} Bxf6 {[%emt 0:00:02]} 23. Rg3 {[%emt 0:02:03]} Rf8 {[%emt 0:02:59]} 24. Kh1 {[%emt 0:00:30]} Bd4 {[%emt 0:00:17]} 25. Be3 {[%emt 0:00:23]} Bxc3 {[%emt 0:00:30]} 26. bxc3 {[%emt 0:00:03]} Rxc3 {[%emt 0:00:20]} 27. Bxa7 {[%emt 0:00:11]} Rxg3 {[%emt 0:00:06]} 28. fxg3 {[%emt 0:00:05]} Ra8 {[%emt 0:00:01]} 29. Bd4 {[%emt 0:00:11]} Rxa2 {[%emt 0:00:03]} 30. Rb1 {[%emt 0:00:04]} Bc6 {[%emt 0:00:08]} 31. Re1 {[%emt 0:00:05]} Ra4 {[%emt 0:00:43]} 32. Be5 {[%emt 0:00:06]} Re4 {[%emt 0:00:08]} 33. Rxe4 {[%emt 0:00:14]} dxe4 {[%emt 0:00:01]} 34. Bf4 {[%emt 0:00:11]} Kf7 {[%emt 0:00:04]} 35. Kg1 {[%emt 0:00:03]} Kf6 {[%emt 0:00:14]} 36. Kf2 {[%emt 0:00:02]} e5 {[%emt 0:00:04]} 37. Be3 {[%emt 0:00:03]} Ke6 {[%emt 0:00:01]} 38. g4 {[%emt 0:00:07]} g6 {[%emt 0:00:09]} 39. h4 {[%emt 0:00:02]} Kd5 {[%emt 0:00:14]} 40. g5 {[%emt 0:00:04]} b5 {[%emt 0:00:07]} 41. Bd2 {[%emt 0:00:08]} Kc4 {[%emt 0:00:03]} 42. Bc1 {[%emt 0:00:05]} Kc3 {[%emt 0:00:13]} 43. Ke3 {[%emt 0:00:12]} b4 {[%emt 0:00:50]} 44. Bd2+ {[%emt 0:00:09]} Kb3 {[%emt 0:00:36]} 45. Bc1 {[%emt 0:00:03]} Kc2 {[%emt 0:00:07]} 46. Bd2 {[%emt 0:00:07]} b3 {[%emt 0:00:00]} 0-1

[Event "13th All African Rapid-ch Women 2024"]
[Site "Accra"]
[Date "2024.03.10"]
[Round "5.7"]
[White "Banda Natalie Katlo"]
[Black "Laubscher, Anzel"]
[Result "1/2-1/2"]
[ECO "A45"]
[WhiteElo "1772"]
[BlackElo "1820"]
[Annotator "NA"]
[PlyCount "77"]
[EventDate "2024.03.07"]
[EventType "rapid"]
[EventCountry "GHA"]
[SourceTitle "playchess.com"]
[Source "ChessBase"]
[SourceQuality "1"]
[TimeControl "900+10"]

1. d4 {[%emt 0:00:02]} Nf6 {[%emt 0:00:02]} 2. Bg5 {[%emt 0:00:01]} Ne4 {[%emt 0:00:02]} 3. Bf4 {[%emt 0:00:01]} d5 {[%emt 0:00:01]} 4. f3 {[%emt 0:00:01]} Nf6 {[%emt 0:00:08]} 5. Nd2 {[%emt 0:00:02]} e6 {[%emt 0:00:39]} 6. c3 {[%emt 0:00:06] A45: Trompowsky Attack.} c5 {[%emt 0:00:13]} 7. e3 {[%emt 0:01:30]} Be7 {[%emt 0:00:31]} 8. Bd3 {[%emt 0:00:25]} Nc6 {[%emt 0:00:34]} 9. Ne2 {[%emt 0:00:06]} O-O {[%emt 0:00:44]} 10. O-O {[%emt 0:00:05]} Nh5 {[%emt 0:00:24]} 11. Qc2 {[%emt 0:00:32]} f5 {[%emt 0:01:54]} 12. b3 {[%emt 0:02:39]} Nxf4 {[%emt 0:03:24]} 13. Nxf4 {[%emt 0:01:12]} g5 {[%emt 0:00:24]} 14. Ne2 {[%emt 0:00:24]} Qe8 {[%emt 0:00:36]} 15. g3 {[%emt 0:03:24]} h5 {[%emt 0:01:28]} 16. Rf2 {[%emt 0:00:07]} Rf6 {[%emt 0:01:52]} 17. f4 {[%emt 0:00:35]} g4 {[%emt 0:00:17]} 18. Rg2 {[%emt 0:01:02]} Rh6 {[%emt 0:01:21]} 19. Kf2 {[%emt 0:01:13]} b6 {[%emt 0:00:26]} 20. Bb5 {[%emt 0:01:01]} Bd7 {[%emt 0:00:12]} 21. Bxc6 {[%emt 0:00:11]} Bxc6 {[%emt 0:00:02]} 22. a3 {[%emt 0:04:11]} Qg6 {[%emt 0:00:48]} 23. Qd1 {[%emt 0:00:00]} Kf7 {[%emt 0:00:07]} 24. b4 {[%emt 0:00:00]} h4 {[%emt 0:00:20]} 25. Qb3 {[%emt 0:00:00]} c4 {[%emt 0:00:14]} 26. Qb2 {[%emt 0:00:00]} Rah8 {[%emt 0:00:13]} 27. Rc1 {[%emt 0:00:00]} hxg3+ {[%emt 0:00:31]} 28. hxg3 {[%emt 0:00:00]} Rh1 {[%emt 0:00:26]} 29. Qb1 {[%emt 0:00:00]} Rxc1 {[%emt 0:00:10]} 30. Qxc1 {[%emt 0:00:00]} Rh6 {[%emt 0:00:36]} 31. Ng1 {[%emt 0:00:01]} Qh7 {[%emt 0:00:04]} 32. Nf1 {[%emt 0:00:15]} Ba4 {[%emt 0:00:17]} 33. Qd2 {[%emt 0:00:10]} Qh8 {[%emt 0:00:43]} 34. Ke1 {[%emt 0:00:04]} a5 {[%emt 0:00:13]} 35. Qb2 {[%emt 0:00:18]} Qa8 {[%emt 0:00:10]} 36. Nd2 {[%emt 0:00:46]} Bc6 {[%emt 0:00:18]} 37. Nf1 {[%emt 0:00:23]} b5 {[%emt 0:00:08]} 38. Nd2 {[%emt 0:00:07]} a4 {[%emt 0:00:58]} 39. Nf1 $17 {[%emt 0:00:02]} 1/2-1/2

[Event "13th All African Rapid-ch Women 2024"]
[Site "Accra"]
[Date "2024.03.10"]
[Round "5.8"]
[White "Vilhete, Vania Fausto Da T."]
[Black "Ayiku, Angela Naa Amerley"]
[Result "1-0"]
[ECO "A35"]
[WhiteElo "1829"]
[BlackElo "1629"]
[Annotator "NA"]
[PlyCount "83"]
[EventDate "2024.03.07"]
[EventType "rapid"]
[EventCountry "GHA"]
[SourceTitle "playchess.com"]
[Source "ChessBase"]
[SourceQuality "1"]
[TimeControl "900+10"]

1. d4 {[%emt 0:15:20]} g6 {[%emt 0:15:20]} 2. c4 {[%emt 0:00:00]} c5 {[%emt 0:00:00]} 3. e3 {[%emt 0:00:00]} Bg7 {[%emt 0:00:00]} 4. Nf3 {[%emt 0:00:00]} cxd4 {[%emt 0:00:00]} 5. exd4 {[%emt 0:00:00]} d6 {[%emt 0:00:00]} 6. Nc3 {[%emt 0:00:00]} Nc6 {[%emt 0:00:00]} 7. h3 {[%emt 0:00:00] A35: Englische Eröffnung (Symmetrische Variante).} Qc7 {[%emt 0:00:00]} 8. Be2 {[%emt 0:00:00]} Nf6 {[%emt 0:00:00]} 9. O-O {[%emt 0:00:00]} O-O {[%emt 0:00:00]} 10. Bg5 {[%emt 0:00:00]} Na5 {[%emt 0:00:00]} 11. b3 {[%emt 0:00:00]} b6 {[%emt 0:00:00]} 12. Nb5 {[%emt 0:00:00]} Qc6 {[%emt 0:00:00]} 13. d5 {[%emt 0:00:00]} Qd7 {[%emt 0:00:00]} 14. Rc1 {[%emt 0:00:00]} Ne4 {[%emt 0:00:00]} 15. Nbd4 {[%emt 0:00:00]} Nxg5 {[%emt 0:00:00]} 16. Nxg5 {[%emt 0:00:00]} Nb7 {[%emt 0:00:00]} 17. Bg4 {[%emt 0:00:00]} Qd8 {[%emt 0:00:00]} 18. Bxc8 {[%emt 0:00:00]} Qxc8 {[%emt 0:00:00]} 19. Nc6 {[%emt 0:00:00]} Qc7 {[%emt 0:00:00]} 20. Re1 {[%emt 0:00:00]} Bf6 {[%emt 0:00:00]} 21. Ne4 {[%emt 0:00:00]} Bg7 {[%emt 0:00:00]} 22. Nc3 {[%emt 0:00:00]} e6 {[%emt 0:00:00]} 23. Nb5 {[%emt 0:00:00]} Qd7 {[%emt 0:00:00]} 24. Ncxa7 {[%emt 0:00:00]} Nc5 {[%emt 0:00:00]} 25. b4 {[%emt 0:00:00]} Na6 {[%emt 0:00:00]} 26. Nc6 {[%emt 0:00:00]} Nc7 {[%emt 0:00:00]} 27. a4 {[%emt 0:04:20]} Ra6 {[%emt 0:00:00]} 28. Nxc7 {[%emt 0:00:00]} Qxc7 {[%emt 0:00:00]} 29. b5 {[%emt 0:00:00]} Raa8 {[%emt 0:00:00]} 30. dxe6 {[%emt 0:00:00]} fxe6 {[%emt 0:00:00]} 31. Rxe6 {[%emt 0:00:00]} Qf7 {[%emt 0:00:00]} 32. Qe2 {[%emt 0:00:00]} Rae8 {[%emt 0:00:00]} 33. Re1 {[%emt 0:00:00]} Ra8 {[%emt 0:01:01]} 34. Rxd6 {[%emt 0:00:00]} Rxa4 {[%emt 0:00:05]} 35. Re6 {[%emt 0:00:00]} Bc3 {[%emt 0:01:12]} 36. Rf1 {[%emt 0:00:44]} Rfa8 {[%emt 0:02:40]} 37. Ne7+ {[%emt 0:00:20]} Kf8 {[%emt 0:00:11]} 38. Nd5 {[%emt 0:00:03]} Bf6 {[%emt 0:00:12]} 39. Rxf6 {[%emt 0:00:05]} Ra2 {[%emt 0:00:08]} 40. Rxf7+ {[%emt 0:00:01]} Kxf7 {[%emt 0:00:02]} 41. Qe7+ {[%emt 0:00:02]} Kg8 {[%emt 0:00:03]} 42. Nf6+ {[%emt 0:00:03]} 1-0

[Event "13th All African Rapid-ch Women 2024"]
[Site "Accra"]
[Date "2024.03.10"]
[Round "5.9"]
[White "Gertrude Banini"]
[Black "Benson, Maud"]
[Result "0-1"]
[ECO "A40"]
[WhiteElo "1681"]
[BlackElo "1664"]
[Annotator "NA"]
[PlyCount "100"]
[EventDate "2024.03.07"]
[EventType "rapid"]
[EventCountry "GHA"]
[SourceTitle "playchess.com"]
[Source "ChessBase"]
[SourceQuality "1"]
[TimeControl "900+10"]

1. d4 {[%emt 0:00:04]} b6 {[%emt 0:00:01]} 2. c4 {[%emt 0:00:05]} Bb7 {[%emt 0:00:01]} 3. Nf3 {[%emt 0:00:10]} e6 {[%emt 0:00:09]} 4. Bg5 {[%emt 0:00:26]} Be7 {[%emt 0:00:03]} 5. Bxe7 {[%emt 0:00:06]} Nxe7 {[%emt 0:00:04]} 6. e3 {[%emt 0:00:03]} O-O {[%emt 0:00:03]} 7. Be2 {[%emt 0:00:08]} d5 {[%emt 0:00:16]} 8. cxd5 {[%emt 0:00:14]} exd5 {[%emt 0:00:05]} 9. O-O {[%emt 0:00:10]} Ng6 {[%emt 0:00:45]} 10. Nc3 {[%emt 0:00:52]} f5 {[%emt 0:00:15]} 11. Bd3 {[%emt 0:00:42]} Nd7 {[%emt 0:00:31]} 12. Qb3 {[%emt 0:00:37]} c6 {[%emt 0:00:13]} 13. Rac1 {[%emt 0:00:43]} Kh8 {[%emt 0:00:07]} 14. Ne2 {[%emt 0:00:37]} c5 {[%emt 0:01:49]} 15. dxc5 {[%emt 0:01:48]} Nxc5 {[%emt 0:02:08]} 16. Qd1 {[%emt 0:00:30]} Nxd3 {[%emt 0:00:31]} 17. Qxd3 {[%emt 0:00:04]} f4 {[%emt 0:00:04]} 18. exf4 {[%emt 0:00:32]} Nxf4 {[%emt 0:00:05]} 19. Nxf4 {[%emt 0:00:05]} Rxf4 {[%emt 0:00:06]} 20. Qe3 {[%emt 0:01:39]} Re4 {[%emt 0:00:34]} 21. Qg5 {[%emt 0:01:04]} Qxg5 {[%emt 0:01:38]} 22. Nxg5 {[%emt 0:00:03]} Re2 {[%emt 0:00:04]} 23. Rc7 {[%emt 0:02:07]} Ba6 {[%emt 0:00:29]} 24. Rb1 {[%emt 0:00:35]} d4 {[%emt 0:00:24]} 25. h3 {[%emt 0:00:42]} d3 {[%emt 0:00:08]} 26. Rd7 {[%emt 0:01:13]} h6 {[%emt 0:02:09]} 27. Nf3 {[%emt 0:00:15]} Kg8 {[%emt 0:03:48]} 28. a4 {[%emt 0:00:09]} Kf8 {[%emt 0:00:15]} 29. b4 {[%emt 0:01:02]} Bc4 {[%emt 0:00:36]} 30. Rc1 {[%emt 0:00:50]} Rc2 {[%emt 0:01:04]} 31. Re1 {[%emt 0:00:52]} Re2 {[%emt 0:00:30]} 32. Rc1 {[%emt 0:00:03]} Rc2 {[%emt 0:00:14]} 33. Re1 {[%emt 0:00:04]} Re2 {[%emt 0:00:27]} 34. Rc1 {[%emt 0:00:05]} b5 {[%emt 0:00:22]} 35. axb5 {[%emt 0:00:16]} Bxb5 {[%emt 0:00:02]} 36. Rb7 {[%emt 0:00:49]} Rc2 {[%emt 0:00:15]} 37. Re1 {[%emt 0:00:23]} Bc6 {[%emt 0:00:09]} 38. Rc7 {[%emt 0:00:41]} Bxf3 {[%emt 0:00:15]} 39. Rxc2 {[%emt 0:00:11]} dxc2 {[%emt 0:00:03]} 40. gxf3 {[%emt 0:00:06]} Rc8 {[%emt 0:00:10]} 41. Rc1 {[%emt 0:00:02]} Ke7 {[%emt 0:01:08]} 42. Kg2 Kd6 {[%emt 0:00:00]} 43. Kg3 {[%emt 0:00:03]} Kd5 {[%emt 0:00:00]} 44. Kg4 {[%emt 0:00:04]} g6 {[%emt 0:00:00]} 45. f4 {[%emt 0:00:10]} Kd4 {[%emt 0:00:00]} 46. f5 {[%emt 0:00:13]} gxf5+ {[%emt 0:00:00]} 47. Kxf5 {[%emt 0:00:01]} Kd3 {[%emt 0:00:00]} 48. Kg6 {[%emt 0:00:08]} Kd2 {[%emt 0:00:00]} 49. Rh1 {[%emt 0:00:04]} c1=Q {[%emt 0:00:00]} 50. Rxc1 {[%emt 0:00:10]} Rxc1 {[%emt 0:00:00]} 0-1